lending/lending_fUSD_20250315
["ID","MTS","AMOUNT","RATE_DAILY","PERIOD"]
[356197506,1742067040562,-1000.0,0.00027074,2]
[356197508,1742067040571,-152.3,0.00027363,30]
[356197510,1742067040580,-194.85218507,0.00027428,21]
[356197512,1742067040590,-36557.73571781,0.00027428,21]
[356197514,1742067040599,-7346.99152993,0.00027429,2]
[356197516,1742067040608,-1500.0,0.000279,2]
[356197518,1742067040617,-544.45,0.00027993,2]
[356197520,1742067040626,-1000.0,0.00028213,5]
[356197522,1742067040636,-1232.0,0.00029,5]
[356197524,1742067040646,-200.0,0.00029,120]
[356197526,1742067040655,-1000.0,0.00029,8]
[356197528,1742067040664,-1000.0,0.00029,7]
[356197530,1742067040674,-1000.0,0.00029,6]
[356197532,1742067040685,-1000.0,0.00029,5]
[356197534,1742067040694,-1000.0,0.00029,3]
[356197536,1742067040704,-1000.0,0.00029,4]
[356197538,1742067040714,-1013.0,0.00029,4]
[356197539,1742067040723,-1000.0,0.00029,5]
[356197541,1742067040732,-1000.0,0.00029,7]
[356197543,1742067040744,-1000.0,0.00029,9]
[356197545,1742067040754,-1000.0,0.00029,9]
[356197547,1742067040764,-1000.0,0.00029,3]
[356197549,1742067040774,-1000.0,0.00029,5]
[356197551,1742067040784,-1000.0,0.00029,6]
[356197553,1742067040793,-1003.0,0.00029,4]
[356197555,1742067040802,-1000.0,0.00029,4]
[356197557,1742067040812,-1000.0,0.00029,6]
[356197559,1742067040821,-1008.0,0.00029,5]
[356197561,1742067040832,-1000.0,0.00029,4]
[356197563,1742067040842,-1000.0,0.00029,3]
[356197565,1742067040851,-222.98540112,0.00029534,120]
[356197567,1742067040862,-526.59410661,0.00029621,2]
[356197569,1742067040871,-927.66294614,0.00029621,15]
[356197571,1742067040880,-1520.33710949,0.00029621,2]
[356197573,1742067040889,-197.33,0.00029706,120]
[356197575,1742067040898,-20653.1263,0.00029741,2]
[356197577,1742067040907,-166.03096226,0.0002976,2]
[356197579,1742067040918,-355.17871188,0.0002977,2]
[356197580,1742067040926,-3193.108415,0.0002977,2]
[356197582,1742067040936,-1573.97525351,0.0002977,2]
[356197584,1742067040945,-305.55625196,0.0002977,2]
[356197586,1742067040954,-464.52175368,0.00029782,2]
[356197589,1742067040968,-535.47824632,0.00029782,2]
[356197591,1742067040978,-442.11,0.00029793,2]
[356197593,1742067040987,-518.66,0.00029793,2]
[356197595,1742067040997,-1.21080848,0.00029829,2]
[356198130,1742067046433,-288.57893742,0.00024529,2]
[356200407,1742068231716,-250.0,0.00019,2]
[356200408,1742068231726,-773.64136692,0.000209,2]
[356200409,1742068231736,-300.0,0.00021,2]
[356200410,1742068231747,-773.6413669,0.00024592,2]
[356200411,1742068231756,-2793.47537563,0.00026292,10]
[356201187,1742068239713,-768.61210351,0.00026292,10]
[356201738,1742068245632,-8217.29224125,0.00026292,10]
[356201750,1742068245739,-8231.50493996,0.00026292,10]
[356201752,1742068245749,-150.0,0.00026682,2]
[356201754,1742068245758,-505.24,0.00026849,2]
[356201756,1742068245768,-150.0,0.00026982,2]
[356201758,1742068245778,-435.56,0.00027413,2]
[356201760,1742068245788,-201.0,0.00028,120]
[356201762,1742068245798,-150.0,0.00028282,2]
[356201764,1742068245807,-773.6413669,0.00028284,2]
[356201766,1742068245817,-500.0,0.00028383,2]
[356201768,1742068245826,-176.99,0.00028383,2]
[356201770,1742068245836,-150.0,0.00028383,2]
[356201772,1742068245845,-3606.99,0.00028383,2]
[356201774,1742068245855,-42.93349034,0.00028383,2]
[356203818,1742069431640,-250.0,0.00019,2]
[356203819,1742069431650,-750.398,0.00026,2]
[356203820,1742069431693,-591.826501,0.00026,2]
[356203821,1742069431705,-511.43525781,0.00026,2]
[356204626,1742069440086,-501.23138456,0.00026,2]
[356204894,1742069442647,-1180.83032143,0.00026,2]
[356204895,1742069442656,-434.19,0.00026691,2]
[356204896,1742069442665,-1501.0,0.000279,2]
[356204897,1742069442674,-200.0,0.00028066,2]
[356204898,1742069442683,-150.0,0.00028117,2]
[356204899,1742069442692,-1000.0,0.00028118,2]
[356204900,1742069442702,-53.24832331,0.00028156,2]
[356204904,1742069442753,-946.75167669,0.00028156,2]
[356204906,1742069442763,-848.64,0.00028175,2]
[356204908,1742069442772,-1500.0,0.00028181,2]
[356204910,1742069442781,-112.77718614,0.00028181,2]
[356204914,1742069442807,-1224.20281386,0.00028181,2]
[356204916,1742069442817,-40.46740164,0.00028216,2]
[356205225,1742069445685,-199.70259836,0.00028216,2]
[356205227,1742069445694,-250.0,0.0002826,2]
[356205229,1742069445703,-1463.93,0.0002826,2]
[356205231,1742069445713,-194.85218507,0.00028286,21]
[356205233,1742069445723,-638.12986798,0.00028287,21]
[356205235,1742069445734,-1325.95192759,0.00028287,21]
[356205237,1742069445746,-18852.11818387,0.00028287,21]
[356205240,1742069445761,-26023.96700066,0.00028287,21]
[356205242,1742069445773,-12720.76769347,0.00028287,21]
[356205244,1742069445785,-494.37099225,0.00028287,21]
[356205257,1742069445896,-435.15,0.00028287,21]
[356208087,1742070631729,-517.13940977,0.0002,15]
[356208088,1742070631739,-451.75,0.00026167,2]
[356208089,1742070631749,-299.65,0.00026849,2]
[356208090,1742070631760,-153.0,0.00027532,120]
[356208091,1742070631770,-200.0,0.00027785,2]
[356208092,1742070631779,-200.14,0.00027791,2]
[356208093,1742070631788,-197.33,0.00027873,120]
[356208094,1742070631797,-1000.0,0.00027888,2]
[356208095,1742070631807,-442.11,0.000279,2]
[356208096,1742070631817,-779.26,0.000279,2]
[356208097,1742070631826,-442.11,0.000279,2]
[356208098,1742070631835,-779.26,0.000279,2]
[356208099,1742070631845,-1458.36,0.00027904,2]
[356208100,1742070631854,-150.0,0.00027907,2]
[356208101,1742070631864,-768.87,0.00027942,2]
[356208102,1742070631873,-1621.68717825,0.00027945,2]
[356208103,1742070631887,-2157.14562175,0.00027945,2]
[356208104,1742070631897,-442.11,0.00028,2]
[356208105,1742070631906,-250.0,0.00028014,2]
[356208106,1742070631916,-3985.56228915,0.00028046,2]
[356208107,1742070631927,-758.38503925,0.00028046,2]
[356208108,1742070631950,-460.41945869,0.00028046,2]
[356208109,1742070631961,-334.50747262,0.00028046,2]
[356208110,1742070631973,-700.0,0.00028046,2]
[356208111,1742070631992,-4232.56611195,0.00028046,2]
[356208112,1742070632004,-581.96808277,0.00028046,2]
[356208113,1742070632015,-387.4749431,0.00028046,2]
[356208114,1742070632026,-322.9200006,0.00028046,2]
[356208115,1742070632042,-1612.13791205,0.00028046,2]
[356208116,1742070632053,-595.39054192,0.00028046,2]
[356208117,1742070632063,-324.5640396,0.00028046,2]
[356208118,1742070632074,-700.0,0.00028046,2]
[356208119,1742070632085,-1400.3000356,0.00028046,2]
[356208120,1742070632107,-5420.41289666,0.00028046,2]
[356208121,1742070632118,-255.25332569,0.00028046,2]
[356208652,1742070637865,-500.0,0.00028046,2]
[356208874,1742070640078,-1328.13785035,0.00028046,2]
[356208876,1742070640088,-152.83,0.00028088,30]
[356208878,1742070640097,-344.75,0.000281,2]
[356208879,1742070640107,-779.26,0.000281,2]
[356208881,1742070640116,-186.65263019,0.000281,2]
[356208883,1742070640127,-255.45736981,0.000281,2]
[356208885,1742070640136,-132.22108004,0.000281,2]
[356208887,1742070640147,-543.18663901,0.000281,2]
[356209350,1742070644766,-103.85228095,0.000281,2]
[356209352,1742070644776,-288.44262282,0.000281,2]
[356209438,1742070645744,-153.66737718,0.000281,2]
[356209440,1742070645755,-150.0,0.00028116,7]
[356209442,1742070645766,-590.08,0.00028138,2]
[356209444,1742070645776,-821.3,0.00028147,2]
[356209446,1742070645786,-500.0,0.0002816,2]
[356209448,1742070645796,-300.0,0.00028166,2]
[356209451,1742070645807,-2000.0,0.00028167,120]
[356209453,1742070645817,-585.69,0.00028167,2]
[356209455,1742070645827,-2027.48,0.00028175,2]
[356209457,1742070645837,-1000.0,0.00028184,2]
[356209459,1742070645847,-150.99,0.00028187,2]
[356209461,1742070645857,-258.52,0.000282,2]
[356209463,1742070645867,-610.335,0.0002826,19]
[356209465,1742070645878,-171.20496,0.0002826,41]
[356209492,1742070646091,-369.79,0.000283,2]
[356209496,1742070646166,-442.11,0.000283,2]
[356209498,1742070646176,-442.11,0.000283,2]
[356209500,1742070646185,-442.11,0.000283,2]
[356209503,1742070646196,-779.26,0.000284,2]
[356209506,1742070646206,-577.17,0.000284,2]
[356209509,1742070646216,-451.75,0.00028431,2]
[356209512,1742070646226,-173.03,0.00028461,2]
[356209515,1742070646237,-500.0,0.00028461,2]
[356209518,1742070646248,-173.03,0.00028536,2]
[356209520,1742070646258,-11894.95268565,0.0002859,2]
[356210804,1742071831948,-274.58199992,0.00026404,2]
[356210805,1742071831959,-170.50800008,0.00026404,2]
[356210806,1742071831969,-479.97,0.00026849,2]
[356210807,1742071831979,-359.97034992,0.00027732,4]
[356210808,1742071831990,-22.09113798,0.00027732,4]
[356210809,1742071831999,-200.0,0.00028206,2]
[356210810,1742071832009,-166.78,0.00028231,2]
[356210811,1742071832018,-277.95,0.00028269,2]
[356210812,1742071832028,-250.0,0.00028322,2]
[356210813,1742071832037,-150.0,0.00028345,7]
[356210814,1742071832046,-1000.0,0.0002836,2]
[356210815,1742071832057,-488.268,0.00028407,19]
[356210816,1742071832067,-300.0,0.00028407,2]
[356210817,1742071832076,-5958.30444758,0.00028408,2]
[356210818,1742071832088,-823.89692,0.00028408,2]
[356210819,1742071832127,-435.12850559,0.00028408,2]
[356210820,1742071832191,-5458.00703513,0.00028408,2]
[356210821,1742071832207,-946.24,0.00028408,2]
[356210822,1742071832218,-9030.99350267,0.00028408,2]
[356210823,1742071832233,-722.23935065,0.00028408,2]
[356210824,1742071832313,-525.19023838,0.00028408,2]
[356210825,1742071832322,-60.24637061,0.00028415,30]
[356210828,1742071832361,-92.58362939,0.00028415,30]
[356210830,1742071832370,-302.61722585,0.00028492,2]
[356210833,1742071832382,-56.62277415,0.00028492,2]
[356210834,1742071832391,-310.22223585,0.00028514,2]
[356210837,1742071832402,-387.11776415,0.00028514,2]
[356210839,1742071832411,-1138.61319582,0.00028517,120]
[356210841,1742071832423,-296.909,0.00028517,120]
[356210843,1742071832433,-356.15532581,0.00028517,120]
[356210845,1742071832445,-208.32247837,0.00028517,120]
[356210847,1742071832455,-359.24,0.00028567,2]
[356210849,1742071832464,-150.99,0.0002859,2]
[356210851,1742071832473,-171.20496,0.0002859,42]
[356210853,1742071832483,-173.03,0.00028611,2]
[356210855,1742071832492,-359.24,0.00028642,2]
[356210857,1742071832501,-445.09,0.00028668,2]
[356210859,1742071832511,-173.03,0.00028686,2]
[356210861,1742071832520,-359.24,0.00028717,2]
[356210863,1742071832530,-173.03,0.00028761,2]
[356210865,1742071832539,-359.24,0.00028792,2]
[356210867,1742071832548,-173.03,0.00028836,2]
[356210869,1742071832558,-359.24,0.00028867,2]
[356210871,1742071832567,-396.28806662,0.0002888,2]
[356210874,1742071832579,-2224.58058782,0.0002888,2]
[356210876,1742071832591,-6098.05023276,0.0002888,2]
[356210878,1742071832600,-166.66,0.0002889,2]
[356210880,1742071832610,-3180.34249234,0.000289,5]
[356210882,1742071832621,-47.78478685,0.0002891,2]
[356211092,1742071838074,-125.24521315,0.0002891,2]
[356211093,1742071838083,-359.24,0.00028942,2]
[356211094,1742071838092,-173.03,0.00028985,2]
[356211095,1742071838102,-359.24,0.00029017,2]
[356211096,1742071838113,-173.03,0.0002906,2]
[356211097,1742071838124,-359.24,0.00029092,2]
[356211098,1742071838133,-166.69,0.00029119,2]
[356211099,1742071838143,-173.03,0.00029135,2]
[356211100,1742071838153,-359.24,0.00029167,2]
[356211101,1742071838162,-173.03,0.0002921,2]
[356211102,1742071838171,-359.24,0.00029242,2]
[356211103,1742071838181,-173.03,0.00029285,2]
[356211105,1742071838190,-359.24,0.00029317,2]
[356211107,1742071838200,-173.03,0.0002936,2]
[356211109,1742071838210,-359.24,0.00029392,2]
[356211111,1742071838219,-173.03,0.00029435,2]
[356211112,1742071838227,-359.24,0.00029467,2]
[356211114,1742071838236,-173.03,0.0002951,2]
[356211116,1742071838246,-359.24,0.00029542,2]
[356211118,1742071838255,-173.03,0.00029585,2]
[356211119,1742071838266,-359.24,0.00029617,2]
[356211120,1742071838276,-173.03,0.00029659,2]
[356211121,1742071838285,-591.8265,0.0002968,2]
[356211122,1742071838294,-359.24,0.00029692,2]
[356211124,1742071838303,-173.03,0.00029734,2]
[356211126,1742071838313,-359.24,0.00029767,2]
[356211128,1742071838323,-1192.5776,0.0002977,2]
[356211130,1742071838332,-1190.7129,0.0002977,2]
[356211132,1742071838341,-2500.0,0.0002977,2]
[356211134,1742071838351,-151.0,0.00029773,7]
[356211137,1742071838359,-1217.73778685,0.00029773,2]
[356211139,1742071838375,-2296.01954149,0.00029773,2]
[356211152,1742071838459,-1794.52730504,0.00029773,2]
[356211154,1742071838468,-316.41488774,0.00029779,2]
[356211156,1742071838477,-39289.27523308,0.00029779,21]
[356211158,1742071838487,-20874.1326,0.0002978,2]
[356211160,1742071838496,-16588.3517,0.0002978,2]
[356211161,1742071838506,-500.0,0.0002978,2]
[356211163,1742071838516,-2779.02676469,0.00029784,2]
[356211165,1742071838525,-305.55625196,0.00029784,2]
[356211167,1742071838535,-3208.3136932,0.00029784,2]
[356211169,1742071838544,-173.03,0.00029809,2]
[356211171,1742071838554,-359.24,0.00029842,2]
[356211173,1742071838563,-2375.0109116,0.00029849,2]
[356211175,1742071838573,-500.0,0.00029869,2]
[356211177,1742071838582,-239.24661064,0.00029869,2]
[356211179,1742071838591,-500.0,0.00029869,2]
[356211181,1742071838600,-349.58580775,0.00029869,2]
[356211183,1742071838610,-500.0,0.00029869,2]
[356211185,1742071838634,-500.0,0.00029869,2]
[356211187,1742071838643,-500.0,0.00029869,2]
[356211189,1742071838652,-500.0,0.00029869,2]
[356211191,1742071838661,-500.0,0.00029869,2]
[356211193,1742071838673,-500.0,0.00029869,2]
[356211195,1742071838682,-500.0,0.00029869,2]
[356211197,1742071838691,-500.0,0.00029869,2]
[356211199,1742071838701,-500.0,0.00029869,2]
[356211201,1742071838711,-500.0,0.00029869,2]
[356211203,1742071838720,-500.0,0.00029869,2]
[356211205,1742071838729,-500.0,0.00029869,2]
[356211207,1742071838738,-500.0,0.00029869,2]
[356211209,1742071838747,-500.0,0.00029869,2]
[356211210,1742071838757,-500.0,0.00029869,2]
[356211212,1742071838766,-500.0,0.00029869,2]
[356211213,1742071838776,-176.68010909,0.00029869,2]
[356211214,1742071838786,-500.0,0.00029869,2]
[356211215,1742071838795,-500.0,0.00029869,2]
[356211216,1742071838805,-500.0,0.00029869,2]
[356211217,1742071838815,-500.0,0.00029869,2]
[356211218,1742071838824,-500.0,0.00029869,2]
[356211219,1742071838834,-500.0,0.00029869,2]
[356211220,1742071838843,-162513.171792,0.0002987,2]
[356211221,1742071838853,-10498.4246025,0.0002987,2]
[356211222,1742071838862,-151.07,0.0002987,2]
[356211223,1742071838871,-500.0,0.00029873,2]
[356211224,1742071838880,-300.15831258,0.00029873,5]
[356211225,1742071838889,-24664.10435555,0.0002988,2]
[356211229,1742071840182,-723.11646296,0.0002988,2]
[356211230,1742071840193,-812.93999992,0.0002988,2]
[356212041,1742073032207,-177.77,0.00022664,2]
[356212042,1742073032217,-459.67,0.00026478,2]
[356212043,1742073032227,-197.0,0.00026849,2]
[356212044,1742073032238,-549.81,0.00028254,2]
[356212045,1742073032248,-150.0,0.00028261,2]
[356212046,1742073032258,-166.78,0.00028274,2]
[356212047,1742073032268,-942.62,0.00028324,2]
[356212048,1742073032278,-1000.0,0.00028353,2]
[356212049,1742073032288,-292.19,0.0002836,2]
[356212050,1742073032298,-159.76,0.0002836,2]
[356212051,1742073032308,-292.19,0.00028434,2]
[356212052,1742073032317,-250.0,0.0002847,2]
[356212053,1742073032327,-152.83,0.00028477,30]
[356212054,1742073032336,-292.19,0.00028509,2]
[356212055,1742073032345,-150.0,0.00028521,7]
[356212056,1742073032355,-2000.0,0.00028583,120]
[356212057,1742073032366,-292.19,0.00028584,2]
[356212058,1742073032376,-23900.0,0.00028626,2]
[356212059,1742073032385,-292.19,0.00028658,2]
[356212060,1742073032395,-292.19,0.00028733,2]
[356212061,1742073032405,-459.67,0.00028742,2]
[356212062,1742073032414,-292.19,0.00028808,2]
[356212063,1742073032424,-182.69,0.00028817,2]
[356212064,1742073032433,-390.615,0.00028882,21]
[356212065,1742073032443,-292.19,0.00028882,2]
[356212066,1742073032452,-3074.33107589,0.000289,5]
[356212067,1742073032462,-292.19,0.00028957,2]
[356212068,1742073032471,-150.0,0.00028957,2]
[356212069,1742073032482,-286.546116,0.00028983,4]
[356212070,1742073032492,-292.19,0.00029031,2]
[356212071,1742073032502,-292.19,0.00029106,2]
[356212072,1742073032523,-292.19,0.00029181,2]
[356212073,1742073032534,-292.19,0.00029255,2]
[356212074,1742073032544,-292.19,0.0002933,2]
[356212075,1742073032554,-292.19,0.00029405,2]
[356212076,1742073032564,-292.19,0.00029479,2]
[356212077,1742073032573,-292.19,0.00029554,2]
[356212078,1742073032583,-292.19,0.00029628,2]
[356212080,1742073032593,-292.19,0.00029703,2]
[356212081,1742073032603,-297.4374,0.00029749,2]
[356212082,1742073032614,-268.4693,0.0002977,2]
[356212083,1742073032624,-292.19,0.00029778,2]
[356212084,1742073032634,-17906.5074,0.0002978,2]
[356212085,1742073032644,-2501.12408823,0.0002978,2]
[356212086,1742073032653,-2994.4261137,0.0002978,2]
[356212087,1742073032664,-4777.45616997,0.0002978,2]
[356212088,1742073032674,-2500.0,0.0002978,2]
[356212089,1742073032684,-1000.0,0.00029829,2]
[356212090,1742073032694,-1000.0,0.00029829,6]
[356212091,1742073032704,-69913.7241481,0.0002987,2]
[356212092,1742073032714,-180.44802466,0.00029873,5]
[356212093,1742073032723,-1877.6044597,0.00029875,2]
[356212094,1742073032735,-594.71006542,0.00029879,2]
[356212095,1742073032745,-167.47262745,0.00029879,2]
[356212096,1742073032756,-500.0,0.00029879,2]
[356212097,1742073032766,-500.0,0.00029879,2]
[356212098,1742073032776,-500.0,0.00029879,2]
[356212099,1742073032786,-500.0,0.00029879,2]
[356212100,1742073032796,-500.0,0.00029879,2]
[356212101,1742073032806,-500.0,0.00029879,2]
[356212102,1742073032817,-500.0,0.00029879,2]
[356212103,1742073032827,-500.0,0.00029879,2]
[356212104,1742073032837,-500.0,0.00029879,2]
[356212105,1742073032847,-500.0,0.00029879,2]
[356212106,1742073032857,-500.0,0.00029879,2]
[356212107,1742073032871,-500.0,0.00029879,2]
[356212108,1742073032883,-500.0,0.00029879,2]
[356212109,1742073032893,-500.0,0.00029879,2]
[356212110,1742073032903,-304.40697366,0.00029879,2]
[356212111,1742073032913,-500.0,0.00029879,2]
[356212112,1742073032923,-500.0,0.00029879,2]
[356212113,1742073032933,-19644.63761655,0.0002988,22]
[356212114,1742073032943,-62760.32044959,0.0002988,2]
[356212115,1742073032965,-3807.96788071,0.0002988,2]
[356212116,1742073040371,-305.55625196,0.0002978,2]
[356212117,1742073040381,-216.44374804,0.0002988,2]
[356212118,1742073041747,-0.00713579,0.0002988,2]
[356212302,1742074232299,-177.77,0.00026557,2]
[356212303,1742074232310,-284.66,0.00026849,2]
[356212304,1742074232319,-152.83,0.00028329,30]
[356212305,1742074232328,-214.909587,0.00028983,4]
[356212306,1742074232339,-26.830413,0.00028983,21]
[356212307,1742074232467,-285.661587,0.00028983,21]
[356212308,1742074232478,-251.04828034,0.0002978,2]
[356212310,1742074238312,-424.538785,0.0002978,2]
[356212311,1742074238397,-1629.83238255,0.0002978,2]
[356212312,1742074238420,-2126.05698289,0.0002978,2]
[356212313,1742074238430,-1099.66895685,0.00029879,2]
[356212314,1742074238439,-259.57469364,0.00029879,2]
[356212317,1742074240382,-240.42530636,0.00029879,2]
[356212318,1742074240392,-411.17993987,0.00029879,2]
[356212319,1742074240401,-500.0,0.00029879,2]
[356212320,1742074240411,-281.71833198,0.00029879,2]
[356212321,1742074240420,-500.0,0.00029879,2]
[356212322,1742074240428,-500.0,0.00029879,2]
[356212323,1742074240438,-439.14084139,0.00029879,2]
[356212324,1742074240447,-500.0,0.00029879,2]
[356212325,1742074240457,-500.0,0.00029879,2]
[356212326,1742074240466,-300.0,0.00029879,2]
[356212327,1742074240475,-90.24906932,0.0002988,22]
[356212347,1742075431450,-455.97,0.00026849,2]
[356212348,1742075431462,-101.12,0.0002978,2]
[356212349,1742075431568,-1817.91612819,0.0002978,2]
[356212350,1742075431689,-712.30967716,0.0002978,2]
[356212427,1742075437412,-1356.98298228,0.0002978,2]
[356212429,1742075437422,-171.20496,0.00029879,45]
[356212431,1742075437431,-405.0,0.00029879,2]
[356212433,1742075437441,-2230.20992395,0.00029879,22]
[356212435,1742075437452,-1117.999961,0.00029879,22]
[356212439,1742075437475,-708.36226381,0.00029879,22]
[356212442,1742075437541,-5316.64924049,0.00029879,22]
[356212443,1742075437553,-693.6846353,0.00029879,22]
[356212444,1742075437563,-3352.46406091,0.0002988,2]
[356212445,1742075437575,-846.43,0.0002988,2]
[356212446,1742075437587,-1092.76717894,0.0002988,2]
[356212447,1742075437599,-2282.51801032,0.0002988,2]
[356212448,1742075437619,-1319.7599991,0.0002988,2]
[356212451,1742075439611,-1031.4323201,0.0002988,2]
[356212452,1742075439624,-978.68999998,0.0002988,2]
[356212519,1742075445643,-491.28060001,0.0002988,2]
[356212525,1742076631844,-200.0,0.00029641,2]
[356212526,1742076631854,-501.24171303,0.0002978,2]
[356212527,1742076631961,-1195.0001492,0.0002978,2]
[356212528,1742076631972,-1317.07995023,0.0002978,2]
[356212529,1742076637584,-576.17409647,0.0002978,2]
[356212530,1742076637594,-423.82590353,0.00029879,15]
[356212531,1742076637756,-1095.7532613,0.00029879,15]
[356212532,1742076637767,-200.7027822,0.00029879,15]
[356212533,1742076637777,-300.0,0.00029879,2]
[356212534,1742076637786,-283.33469368,0.0002988,5]
[356212560,1742076639996,-1174.40500003,0.0002988,5]
[356212589,1742077509053,162230.36790052,0.0001,2]
[356212736,1742077678231,23478.25384599,0.0001,2]
[356212747,1742077831883,-387.13222533,0.00021989,2]
[356212748,1742077831895,-262.86777467,0.00021989,2]
[356212749,1742077831905,-397.81619608,0.00024187,2]
[356212750,1742077831968,-152.18380392,0.00024187,2]
[356212751,1742077831978,-150.0,0.00024187,2]
[356212752,1742077831988,-550.0,0.00024187,2]
[356212753,1742077831998,-150.0,0.00024187,2]
[356212754,1742077832007,-550.0,0.00024187,2]
[356212755,1742077832018,-270.42,0.00026849,2]
[356212756,1742077832028,-433.17,0.00026849,2]
[356212757,1742077832038,-584.38,0.00027699,2]
[356212758,1742077832048,-1091.63,0.00028453,2]
[356212759,1742077832058,-150.0,0.00028462,2]
[356212760,1742077832068,-162.8,0.00028567,2]
[356212761,1742077832077,-2000.0,0.00028613,120]
[356212762,1742077832091,-167.97,0.0002872,2]
[356212763,1742077832101,-162.8,0.00028745,2]
[356212764,1742077832110,-1940.27364727,0.00028745,2]
[356212765,1742077832132,-2811.05635273,0.00028745,2]
[356212766,1742077832143,-2131.87,0.00028747,2]
[356212767,1742077832153,-197.33,0.00028749,120]
[356212768,1742077832163,-1801.43219231,0.0002885,2]
[356212769,1742077832173,-5429.32104723,0.0002885,2]
[356212770,1742077832204,-2878.54477558,0.0002885,2]
[356212771,1742077832216,-1450.70285295,0.0002885,2]
[356212772,1742077832323,-272.0,0.0002885,2]
[356212799,1742077840193,-1144.8721212,0.0002885,2]
[356212800,1742077840419,-12724.55920304,0.0002885,2]
[356212801,1742077840428,-2971.85337337,0.000289,5]
[356212803,1742077840437,-162.8,0.00028924,2]
[356212805,1742077840447,-883.6,0.00028941,2]
[356212807,1742077840456,-162.8,0.00029102,2]
[356212809,1742077840465,-499.99,0.00029281,2]
[356212811,1742077840475,-826.21,0.00029281,2]
[356212813,1742077840484,-162.8,0.00029281,2]
[356212815,1742077840498,-152.83,0.00029287,30]
[356212817,1742077840507,-1000.0,0.00029451,2]
[356212819,1742077840516,-162.8,0.00029459,2]
[356212821,1742077840525,-429.59762659,0.00029486,2]
[356212823,1742077840535,-405.0,0.00029499,2]
[356212825,1742077840544,-11447.781369,0.000295,2]
[356212827,1742077840553,-1163.35742022,0.00029501,2]
[356212829,1742077840562,-6179.54,0.00029511,10]
[356212831,1742077840571,-150.99,0.00029511,2]
[356212833,1742077840581,-171.20496,0.0002958,44]
[356212835,1742077840590,-429.59762659,0.00029624,2]
[356212837,1742077840599,-162.8,0.00029638,2]
[356212839,1742077840608,-200.0,0.0002964,2]
[356212841,1742077840617,-179.876633,0.00029646,7]
[356212843,1742077840627,-250.0,0.00029742,2]
[356212845,1742077840636,-2251.50289251,0.0002978,2]
[356212847,1742077840646,-3247.01705274,0.0002978,2]
[356212849,1742077840654,-1210.55350677,0.0002978,30]
[356212851,1742077840663,-1926.94849978,0.0002978,30]
[356212853,1742077840672,-162.8,0.00029816,2]
[356212855,1742077840681,-23911.0733209,0.0002987,2]
[356212857,1742077840690,-215.66517889,0.00029879,2]
[356212859,1742077840699,-249.993,0.00029879,24]
[356212861,1742077840708,-31485.21903253,0.0002988,5]
[356212862,1742077840717,-5033.45301227,0.0002988,22]
[356212865,1742077840727,-250682.82843807,0.0002988,2]
[356212866,1742077840736,-516.0318374,0.0002988,2]
[356212869,1742077840745,-150.28,0.000299,2]
[356212870,1742077840755,-584.38,0.00029962,2]
[356212872,1742077840764,-150.0,0.0002998,7]
[356212874,1742077840773,-3985.17888681,0.0002999,2]
[356212876,1742077840782,-162.8,0.00029995,2]
[356212878,1742077840792,-800.0,0.0003,30]
[356212880,1742077840801,-176.41,0.00030036,2]
[356212882,1742077840810,-200.0,0.00030046,2]
[356212884,1742077840819,-778.48,0.00030959,2]
[356212886,1742077840827,-350.0,0.00031,2]